[Event "Kupreichik Memorial Open 2018"]
[Site "Minsk"]
[Date "2018.06.21"]
[Round "2"]
[White "Tsaruk, Maksim"]
[Black "Zhukova, Natalia"]
[Result "1-0"]
[ECO "C70"]
[WhiteElo "1980"]
[BlackElo "2356"]
[Annotator "NA"]
[PlyCount "81"]
[EventDate "2018.06.21"]
[EventCountry "BLR"]
[SourceTitle "playchess.com"]
[Source "ChessBase"]
[SourceQuality "1"]
[TimeControl "900+10"]

1. e4 {[%emt 0:00:00]} e5 {[%emt 0:00:04]} 2. Nf3 {[%emt 0:00:00]} Nc6 {[%emt 0:00:02]} 3. Bb5 {[%emt 0:00:15]} a6 {[%emt 0:00:03]} 4. Ba4 {[%emt 0:00:16]} b5 {[%emt 0:00:06]} 5. Bb3 {[%emt 0:00:03]} g6 {[%emt 0:00:03]} 6. O-O {[%emt 0:00:15]} Bg7 {[%emt 0:00:05]} 7. c3 {[%emt 0:00:04]} Nge7 {[%emt 0:00:14]} 8. d4 {[%emt 0:00:05]} exd4 {[%emt 0:00:02]} 9. cxd4 {[%emt 0:00:06]} O-O {[%emt 0:00:05]} 10. Nc3 {[%emt 0:01:15]} d6 {[%emt 0:00:03]} 11. h3 {[%emt 0:00:25]} Na5 {[%emt 0:00:21]} 12. Bc2 {[%emt 0:00:09]} c5 {[%emt 0:00:23]} 13. Rb1 {[%emt 0:02:30]} cxd4 {[%emt 0:00:36]} 14. Nxd4 {[%emt 0:00:04]} Bb7 {[%emt 0:00:02]} 15. Bg5 {[%emt 0:03:37]} h6 {[%emt 0:00:22]} 16. Bh4 {[%emt 0:01:05]} Rc8 {[%emt 0:00:20]} 17. Nde2 {[%emt 0:03:54]} Nc4 {[%emt 0:04:18]} 18. Bb3 {[%emt 0:01:39]} Qd7 {[%emt 0:00:53]} 19. Bg3 {[%emt 0:01:34]} Rfd8 {[%emt 0:00:23]} 20. Bxc4 {[%emt 0:00:01]} Rxc4 {[%emt 0:00:04]} 21. Qd3 {[%emt 0:00:16]} Qc8 {[%emt 0:06:22]} 22. f3 {[%emt 0:00:53]} d5 {[%emt 0:01:37]} 23. Rbd1 {[%emt 0:00:01]} d4 {[%emt 0:01:40]} 24. Bf2 {[%emt 0:00:09]} Nc6 {[%emt 0:00:16]} 25. Nd5 {[%emt 0:00:03]} Rxd5 {[%emt 0:00:36]} 26. exd5 {[%emt 0:00:01]} Ne5 {[%emt 0:00:13]} 27. Qd2 {[%emt 0:00:15]} Rc2 {[%emt 0:00:08]} 28. Qe1 {[%emt 0:00:26]} d3 {[%emt 0:00:12]} 29. Nd4 {[%emt 0:00:01]} Rxb2 {[%emt 0:00:06]} 30. Rd2 {[%emt 0:00:26]} Rxd2 {[%emt 0:00:18]} 31. Qxd2 {[%emt 0:00:01]} Bxd5 {[%emt 0:00:01]} 32. f4 {[%emt 0:00:02]} Nc4 {[%emt 0:00:15]} 33. Qxd3 {[%emt 0:00:10]} Ba8 {[%emt 0:00:10]} 34. Nf3 Kh7 35. Re1 {[%emt 0:00:20]} Qb7 {[%emt 0:00:13]} 36. h4 {[%emt 0:00:18]} Qc7 {[%emt 0:00:11]} 37. f5 {[%emt 0:00:09]} Nb2 {[%emt 0:00:21]} 38. fxg6+ {[%emt 0:00:09]} fxg6 {[%emt 0:00:01]} 39. Qe2 {[%emt 0:00:19]} Qf4 {[%emt 0:00:19]} 40. Be3 {[%emt 0:00:09]} Qg4 {[%emt 0:00:05]} 41. Ng5+ {[%emt 0:00:02]} 1-0

[Event "Kupreichik Memorial Open 2018"]
[Site "Minsk"]
[Date "2018.06.21"]
[Round "2"]
[White "Zhukovskij, Viktor"]
[Black "Kalugin, Sergey G"]
[Result "1-0"]
[ECO "B30"]
[WhiteElo "1973"]
[BlackElo "2334"]
[Annotator "NA"]
[PlyCount "113"]
[EventDate "2018.06.21"]
[EventCountry "BLR"]
[SourceTitle "playchess.com"]
[Source "ChessBase"]
[SourceQuality "1"]
[TimeControl "900+10"]

1. e4 {[%emt 0:00:00]} c5 {[%emt 0:00:02]} 2. Nf3 {[%emt 0:00:00]} Nc6 {[%emt 0:00:01]} 3. Bb5 {[%emt 0:00:00]} d6 {[%emt 0:00:01]} 4. Bxc6+ {[%emt 0:00:00]} bxc6 {[%emt 0:00:01]} 5. O-O {[%emt 0:00:04]} g6 {[%emt 0:01:15]} 6. c3 {[%emt 0:00:40]} Bg7 {[%emt 0:00:29]} 7. h3 {[%emt 0:00:22]} Nf6 {[%emt 0:00:28]} 8. Re1 {[%emt 0:00:03]} O-O {[%emt 0:00:37]} 9. d4 {[%emt 0:00:22]} cxd4 {[%emt 0:00:06]} 10. cxd4 {[%emt 0:00:01]} Rb8 {[%emt 0:00:37]} 11. Nc3 {[%emt 0:00:23]} Nd7 {[%emt 0:00:20]} 12. Qc2 {[%emt 0:00:43]} c5 {[%emt 0:00:15]} 13. Be3 {[%emt 0:00:38]} Bb7 {[%emt 0:01:38]} 14. Rad1 {[%emt 0:03:38]} Qa5 {[%emt 0:00:29]} 15. dxc5 {[%emt 0:03:09]} Nxc5 {[%emt 0:00:02]} 16. Bd4 {[%emt 0:00:02]} Ne6 {[%emt 0:04:46]} 17. Bxg7 {[%emt 0:00:46]} Nxg7 {[%emt 0:00:10]} 18. Nd4 {[%emt 0:01:58]} Rfc8 {[%emt 0:00:06]} 19. Qa4 {[%emt 0:00:33]} Qxa4 {[%emt 0:00:23]} 20. Nxa4 {[%emt 0:00:01]} Ne6 {[%emt 0:01:41]} 21. Nxe6 {[%emt 0:01:37]} fxe6 {[%emt 0:00:01]} 22. Rd2 {[%emt 0:00:47]} e5 {[%emt 0:00:29]} 23. f3 {[%emt 0:00:14]} Kf7 {[%emt 0:00:03]} 24. Kf2 {[%emt 0:00:50]} Rc7 {[%emt 0:01:11]} 25. Nc3 {[%emt 0:00:15]} Rc5 {[%emt 0:00:02]} 26. Red1 {[%emt 0:00:11]} Rbc8 {[%emt 0:00:21]} 27. Ke3 {[%emt 0:00:29]} Ba6 {[%emt 0:00:26]} 28. Rd5 {[%emt 0:00:09]} Bb7 {[%emt 0:00:23]} 29. Rxc5 {[%emt 0:00:05]} Rxc5 {[%emt 0:00:01]} 30. Rd2 {[%emt 0:00:39]} Ke6 {[%emt 0:00:03]} 31. Kd3 {[%emt 0:00:20]} Ba6+ {[%emt 0:00:15]} 32. Kc2 {[%emt 0:00:01]} Kd7 {[%emt 0:00:13]} 33. b4 {[%emt 0:00:08]} Rc8 {[%emt 0:00:02]} 34. a4 {[%emt 0:00:07]} Bc4 {[%emt 0:00:09]} 35. Kb2 {[%emt 0:00:01]} Rb8 {[%emt 0:00:53]} 36. Ka3 {[%emt 0:00:05]} a5 {[%emt 0:00:46]} 37. b5 {[%emt 0:00:10]} e6 {[%emt 0:00:01]} 38. Nd1 {[%emt 0:00:12]} Rc8 {[%emt 0:00:32]} 39. Ne3 {[%emt 0:00:08]} Bxb5 {[%emt 0:00:02]} 40. axb5 {[%emt 0:00:13]} Rc3+ {[%emt 0:00:01]} 41. Ka4 {[%emt 0:00:01]} Rxe3 {[%emt 0:00:02]} 42. Kxa5 {[%emt 0:00:00]} Kc7 {[%emt 0:00:14]} 43. b6+ {[%emt 0:00:31]} Kb7 {[%emt 0:00:12]} 44. Rxd6 {[%emt 0:00:03]} Ra3+ {[%emt 0:00:01]} 45. Kb5 {[%emt 0:00:01]} Rb3+ {[%emt 0:00:01]} 46. Kc5 {[%emt 0:00:01]} Rc3+ {[%emt 0:00:06]} 47. Kb4 {[%emt 0:00:12]} Rc2 {[%emt 0:00:01]} 48. Rxe6 {[%emt 0:00:16]} Rxg2 {[%emt 0:00:02]} 49. Kb5 {[%emt 0:00:04]} Rb2+ {[%emt 0:00:15]} 50. Kc5 {[%emt 0:00:01]} Rc2+ {[%emt 0:00:02]} 51. Kd5 {[%emt 0:00:05]} Rf2 {[%emt 0:00:08]} 52. Rf6 {[%emt 0:00:04]} Rh2 {[%emt 0:00:07]} 53. Rf7+ {[%emt 0:00:12]} Kxb6 {[%emt 0:00:01]} 54. Rxh7 {[%emt 0:00:01]} Rf2 {[%emt 0:00:13]} 55. Rf7 {[%emt 0:00:01]} Rh2 {[%emt 0:00:03]} 56. Kxe5 {[%emt 0:00:03]} Rxh3 {[%emt 0:00:01]} 57. f4 {[%emt 0:00:04]} 1-0

[Event "Kupreichik Memorial Open 2018"]
[Site "Minsk"]
[Date "2018.06.21"]
[Round "2"]
[White "Ilyuchyk, Yana"]
[Black "Nomin-Erdene, Davaademberel"]
[Result "1-0"]
[ECO "C47"]
[WhiteElo "1971"]
[BlackElo "2312"]
[Annotator "NA"]
[PlyCount "151"]
[EventDate "2018.06.21"]
[EventCountry "BLR"]
[SourceTitle "playchess.com"]
[Source "ChessBase"]
[SourceQuality "1"]
[TimeControl "900+10"]

1. e4 {[%emt 0:00:00]} e5 {[%emt 0:00:03]} 2. Nf3 {[%emt 0:00:00]} Nc6 {[%emt 0:00:01]} 3. Nc3 {[%emt 0:00:00]} Nf6 {[%emt 0:00:02]} 4. d4 {[%emt 0:00:01]} exd4 {[%emt 0:00:02]} 5. Nxd4 {[%emt 0:00:02]} Bb4 {[%emt 0:00:01]} 6. Nxc6 {[%emt 0:00:03]} bxc6 {[%emt 0:00:01]} 7. Bd3 {[%emt 0:00:02]} d5 {[%emt 0:00:02]} 8. exd5 {[%emt 0:00:02]} cxd5 {[%emt 0:00:02]} 9. O-O {[%emt 0:00:04]} O-O {[%emt 0:00:02]} 10. h3 {[%emt 0:00:02]} c6 {[%emt 0:00:41]} 11. Qf3 {[%emt 0:00:03]} Bd6 {[%emt 0:00:46]} 12. Bf4 {[%emt 0:00:18]} Rb8 {[%emt 0:01:28]} 13. b3 {[%emt 0:00:02]} Bb7 {[%emt 0:00:23]} 14. Ne2 {[%emt 0:01:47]} c5 {[%emt 0:00:17]} 15. Bxd6 {[%emt 0:00:32]} Qxd6 {[%emt 0:00:02]} 16. Qf4 {[%emt 0:00:02]} Qc6 {[%emt 0:00:23]} 17. Qf3 {[%emt 0:02:09]} Nd7 {[%emt 0:03:04]} 18. Nf4 {[%emt 0:02:14]} Rbe8 {[%emt 0:02:01]} 19. Rfe1 {[%emt 0:00:57]} g6 {[%emt 0:00:37]} 20. c4 {[%emt 0:02:58]} Ne5 {[%emt 0:00:34]} 21. Qg3 {[%emt 0:00:16]} Nxd3 {[%emt 0:03:29]} 22. cxd5 {[%emt 0:01:55]} Qd6 {[%emt 0:01:42]} 23. Nxd3 {[%emt 0:00:04]} Qxd5 {[%emt 0:00:03]} 24. Rac1 {[%emt 0:00:32]} Rxe1+ {[%emt 0:00:56]} 25. Rxe1 {[%emt 0:00:16]} Rd8 {[%emt 0:00:12]} 26. Nf4 {[%emt 0:00:41]} Qd6 {[%emt 0:01:29]} 27. Qe3 {[%emt 0:00:54]} Qc6 {[%emt 0:00:47]} 28. Qe7 {[%emt 0:00:27]} Rc8 {[%emt 0:00:03]} 29. h4 {[%emt 0:00:15]} h5 {[%emt 0:00:24]} 30. Re5 {[%emt 0:00:37]} Qc7 {[%emt 0:00:08]} 31. Qg5 {[%emt 0:00:26]} c4 {[%emt 0:00:13]} 32. Re7 {[%emt 0:00:30]} Qc6 {[%emt 0:00:02]} 33. bxc4 {[%emt 0:00:05]} Rd8 {[%emt 0:00:18]} 34. Kh2 {[%emt 0:00:29]} Rd4 {[%emt 0:00:08]} 35. Qe5 {[%emt 0:00:12]} Rd8 {[%emt 0:00:06]} 36. Rc7 {[%emt 0:00:30]} Qe4 {[%emt 0:00:15]} 37. Qxe4 {[%emt 0:00:17]} Bxe4 {[%emt 0:00:01]} 38. Rxa7 {[%emt 0:00:01]} Rd2 {[%emt 0:00:14]} 39. Kg3 {[%emt 0:00:05]} Rc2 {[%emt 0:00:02]} 40. f3 {[%emt 0:00:14]} Bf5 {[%emt 0:00:13]} 41. Nd5 {[%emt 0:00:34]} Rxc4 {[%emt 0:00:17]} 42. Ne7+ {[%emt 0:00:02]} Kg7 {[%emt 0:00:01]} 43. Nxf5+ {[%emt 0:00:05]} gxf5 {[%emt 0:00:01]} 44. f4 {[%emt 0:00:41]} Rc3+ {[%emt 0:00:16]} 45. Kf2 {[%emt 0:00:01]} Rc2+ {[%emt 0:00:01]} 46. Kg3 {[%emt 0:00:07]} Rc3+ {[%emt 0:00:09]} 47. Kh2 {[%emt 0:00:02]} Rc2 {[%emt 0:00:05]} 48. a4 {[%emt 0:00:03]} Ra2 {[%emt 0:00:15]} 49. Ra5 {[%emt 0:00:08]} Kg6 {[%emt 0:00:09]} 50. Ra6+ {[%emt 0:00:01]} Kg7 {[%emt 0:00:12]} 51. Ra8 {[%emt 0:00:10]} Kg6 {[%emt 0:00:20]} 52. a5 {[%emt 0:00:02]} Kg7 {[%emt 0:00:03]} 53. a6 {[%emt 0:00:01]} Kh7 {[%emt 0:00:18]} 54. a7 {[%emt 0:00:48]} Kg7 {[%emt 0:00:04]} 55. Kg3 {[%emt 0:00:01]} f6 {[%emt 0:00:21]} 56. Kf3 {[%emt 0:00:03]} Ra3+ {[%emt 0:00:08]} 57. Ke2 {[%emt 0:00:01]} Ra1 {[%emt 0:00:24]} 58. Kd3 {[%emt 0:00:02]} Ra4 {[%emt 0:00:03]} 59. Kc3 {[%emt 0:00:03]} Ra1 {[%emt 0:00:03]} 60. Kb4 {[%emt 0:00:07]} Rb1+ {[%emt 0:00:04]} 61. Kc5 {[%emt 0:00:01]} Rc1+ {[%emt 0:00:02]} 62. Kd6 {[%emt 0:00:02]} Rd1+ {[%emt 0:00:41]} 63. Ke6 {[%emt 0:00:03]} Re1+ {[%emt 0:00:03]} 64. Kxf5 {[%emt 0:00:04]} Ra1 {[%emt 0:00:01]} 65. Ke6 {[%emt 0:01:22]} Ra6+ {[%emt 0:00:25]} 66. Ke7 {[%emt 0:00:17]} Ra4 {[%emt 0:00:06]} 67. Rd8 {[%emt 0:00:36]} Rxa7+ {[%emt 0:00:07]} 68. Rd7 {[%emt 0:00:01]} Ra2 {[%emt 0:00:23]} 69. Ke6+ {[%emt 0:00:07]} Kg6 {[%emt 0:00:05]} 70. f5+ {[%emt 0:00:13]} Kh6 {[%emt 0:00:01]} 71. Kxf6 {[%emt 0:00:04]} Rxg2 {[%emt 0:00:06]} 72. Kf7 {[%emt 0:00:34]} Rg4 {[%emt 0:00:15]} 73. f6 {[%emt 0:00:23]} Kh7 {[%emt 0:00:20]} 74. Ke8+ {[%emt 0:00:12]} Kg6 {[%emt 0:00:10]} 75. f7 {[%emt 0:00:02]} Re4+ {[%emt 0:00:01]} 76. Re7 {[%emt 0:00:02]} 1-0

[Event "Kupreichik Memorial Open 2018"]
[Site "Minsk"]
[Date "2018.06.21"]
[Round "2"]
[White "Naumovich, Yaroslav"]
[Black "Terletsky, Oleg"]
[Result "1/2-1/2"]
[ECO "E67"]
[WhiteElo "1959"]
[BlackElo "2268"]
[Annotator "NA"]
[PlyCount "115"]
[EventDate "2018.06.21"]
[EventCountry "BLR"]
[SourceTitle "playchess.com"]
[Source "ChessBase"]
[SourceQuality "1"]
[TimeControl "900+10"]

1. Nf3 {[%emt 0:00:00]} Nf6 {[%emt 0:00:01]} 2. d4 {[%emt 0:00:00]} g6 {[%emt 0:00:01]} 3. g3 {[%emt 0:00:00]} Bg7 {[%emt 0:00:01]} 4. Bg2 {[%emt 0:00:00]} O-O {[%emt 0:00:02]} 5. O-O {[%emt 0:00:00]} d6 {[%emt 0:00:01]} 6. c4 {[%emt 0:00:00]} Nbd7 {[%emt 0:00:01]} 7. Nc3 {[%emt 0:00:00]} e5 {[%emt 0:00:01]} 8. dxe5 {[%emt 0:00:00]} dxe5 {[%emt 0:00:02]} 9. e4 {[%emt 0:00:01]} c6 {[%emt 0:00:02]} 10. b3 {[%emt 0:00:01]} Qe7 {[%emt 0:00:14]} 11. Bb2 {[%emt 0:00:01]} Nc5 {[%emt 0:00:24]} 12. Qc2 {[%emt 0:00:01]} Bg4 {[%emt 0:00:23]} 13. Ba3 {[%emt 0:01:09]} Nfd7 {[%emt 0:00:05]} 14. Rad1 {[%emt 0:00:58]} Qf6 {[%emt 0:01:01]} 15. Qe2 {[%emt 0:00:47]} Rfd8 {[%emt 0:00:24]} 16. h3 {[%emt 0:00:53]} Bxf3 {[%emt 0:00:20]} 17. Qxf3 {[%emt 0:01:00]} Ne6 {[%emt 0:01:15]} 18. Qxf6 {[%emt 0:01:34]} Bxf6 {[%emt 0:00:02]} 19. Ne2 {[%emt 0:00:22]} Ndc5 {[%emt 0:01:12]} 20. f4 {[%emt 0:03:11]} b6 {[%emt 0:01:57]} 21. f5 {[%emt 0:01:55]} Rxd1 {[%emt 0:00:19]} 22. Rxd1 {[%emt 0:00:02]} Nd4 {[%emt 0:00:02]} 23. Nxd4 {[%emt 0:01:03]} exd4 {[%emt 0:00:03]} 24. fxg6 {[%emt 0:01:24]} hxg6 {[%emt 0:00:02]} 25. Bxc5 {[%emt 0:01:19]} bxc5 {[%emt 0:00:02]} 26. Rd3 {[%emt 0:00:02]} Be5 {[%emt 0:00:15]} 27. Kf2 {[%emt 0:00:01]} Kf8 {[%emt 0:00:56]} 28. Bf3 {[%emt 0:00:55]} Ke7 {[%emt 0:00:15]} 29. h4 {[%emt 0:00:37]} Rh8 {[%emt 0:00:08]} 30. Kg2 {[%emt 0:00:40]} Kd6 {[%emt 0:00:31]} 31. Bg4 {[%emt 0:00:20]} f6 {[%emt 0:01:07]} 32. Rf3 {[%emt 0:00:52]} Ke7 {[%emt 0:01:16]} 33. Rd3 {[%emt 0:00:08]} a6 {[%emt 0:00:19]} 34. Rd2 {[%emt 0:00:41]} Bc7 {[%emt 0:00:57]} 35. Rd3 {[%emt 0:00:02]} Ba5 {[%emt 0:00:03]} 36. Bf3 {[%emt 0:00:35]} Kd6 {[%emt 0:00:06]} 37. Bg4 {[%emt 0:00:23]} Rh7 {[%emt 0:00:12]} 38. Bc8 {[%emt 0:00:10]} Bc3 {[%emt 0:00:16]} 39. Kf3 {[%emt 0:00:12]} Ke5 {[%emt 0:00:22]} 40. Bg4 {[%emt 0:00:06]} a5 {[%emt 0:00:09]} 41. Rd1 {[%emt 0:00:13]} Ra7 {[%emt 0:02:15]} 42. Rb1 {[%emt 0:00:11]} Bb4 {[%emt 0:01:07]} 43. a4 {[%emt 0:00:08]} d3 {[%emt 0:00:07]} 44. Ke3 {[%emt 0:00:07]} d2 {[%emt 0:00:04]} 45. Be2 {[%emt 0:00:11]} Rd7 {[%emt 0:00:47]} 46. Bd3 {[%emt 0:00:03]} Rh7 {[%emt 0:00:10]} 47. Be2 {[%emt 0:00:03]} Rg7 {[%emt 0:00:20]} 48. Rf1 {[%emt 0:00:17]} f5 {[%emt 0:00:46]} 49. Bd3 {[%emt 0:00:11]} Rf7 {[%emt 0:01:22]} 50. Bc2 {[%emt 0:00:16]} Rf6 {[%emt 0:00:19]} 51. h5 {[%emt 0:00:10]} gxh5 {[%emt 0:00:07]} 52. Rxf5+ {[%emt 0:00:07]} Rxf5 {[%emt 0:00:03]} 53. exf5 {[%emt 0:00:01]} Kf6 {[%emt 0:00:20]} 54. Bd1 {[%emt 0:00:12]} Kg5 {[%emt 0:00:05]} 55. f6 {[%emt 0:00:08]} Kxf6 {[%emt 0:00:08]} 56. Bxh5 {[%emt 0:00:02]} Kg5 {[%emt 0:00:27]} 57. Bd1 {[%emt 0:00:02]} Kf5 {[%emt 0:00:03]} 58. Be2 {[%emt 0:00:07]} 1/2-1/2

[Event "Kupreichik Memorial Open 2018"]
[Site "Minsk"]
[Date "2018.06.21"]
[Round "2"]
[White "Uzlavataya, Anhelina"]
[Black "Rakhmangulova, Anastasiya"]
[Result "1-0"]
[ECO "A04"]
[WhiteElo "1925"]
[BlackElo "2244"]
[Annotator "NA"]
[PlyCount "60"]
[EventDate "2018.06.21"]
[EventCountry "BLR"]
[SourceTitle "playchess.com"]
[Source "ChessBase"]
[SourceQuality "1"]
[TimeControl "900+10"]

1. Nf3 {[%emt 0:00:00]} c5 {[%emt 0:00:01]} 2. g3 {[%emt 0:00:00]} Nc6 {[%emt 0:00:02]} 3. d4 {[%emt 0:00:00]} cxd4 {[%emt 0:00:02]} 4. Nxd4 {[%emt 0:00:00]} g6 5. Bg2 {[%emt 0:00:31]} Bg7 {[%emt 0:00:08]} 6. Nb3 {[%emt 0:00:45]} Nf6 {[%emt 0:00:16]} 7. c4 {[%emt 0:00:05]} O-O {[%emt 0:00:23]} 8. O-O {[%emt 0:00:06]} d6 {[%emt 0:01:56]} 9. Nc3 {[%emt 0:00:05]} Nd7 {[%emt 0:00:44]} 10. e4 {[%emt 0:01:28]} Nde5 {[%emt 0:02:34]} 11. Qe2 {[%emt 0:00:03]} Be6 {[%emt 0:00:04]} 12. Nd5 {[%emt 0:00:09]} Rc8 {[%emt 0:00:37]} 13. Bg5 {[%emt 0:03:17]} h6 {[%emt 0:05:41]} 14. Bd2 {[%emt 0:00:08]} a5 {[%emt 0:00:53]} 15. Be3 {[%emt 0:01:08]} a4 {[%emt 0:00:12]} 16. Nd2 {[%emt 0:00:31]} Bxd5 {[%emt 0:00:42]} 17. exd5 {[%emt 0:00:23]} Nb4 {[%emt 0:00:17]} 18. Rab1 {[%emt 0:02:08]} Nxa2 {[%emt 0:00:34]} 19. Ra1 {[%emt 0:00:05]} Nb4 {[%emt 0:00:06]} 20. Rxa4 {[%emt 0:00:05]} Ned3 {[%emt 0:00:35]} 21. Be4 {[%emt 0:00:23]} Qd7 {[%emt 0:00:14]} 22. b3 {[%emt 0:00:35]} Nb2 {[%emt 0:02:32]} 23. Rxb4 {[%emt 0:00:04]} Bc3 {[%emt 0:00:01]} 24. Rb5 {[%emt 0:00:18]} f5 {[%emt 0:00:02]} 25. Bg2 {[%emt 0:00:12]} g5 {[%emt 0:00:01]} 26. Nf3 {[%emt 0:00:17]} g4 {[%emt 0:00:30]} 27. Nd4 {[%emt 0:00:12]} f4 {[%emt 0:00:03]} 28. gxf4 {[%emt 0:00:07]} Rc5 {[%emt 0:00:26]} 29. Rxc5 {[%emt 0:00:08]} dxc5 {[%emt 0:00:02]} 30. Ne6 {[%emt 0:00:06]} h5 {[%emt 0:00:11]} 1-0

[Event "Kupreichik Memorial Open 2018"]
[Site "Minsk"]
[Date "2018.06.21"]
[Round "2"]
[White "Sadovnikov, Konstantin"]
[Black "Ten, Alexander"]
[Result "0-1"]
[ECO "C26"]
[WhiteElo "1908"]
[BlackElo "2265"]
[Annotator "NA"]
[PlyCount "90"]
[EventDate "2018.06.21"]
[EventCountry "BLR"]
[SourceTitle "playchess.com"]
[Source "ChessBase"]
[SourceQuality "1"]
[TimeControl "900+10"]

1. e4 {[%emt 0:00:00]} e5 {[%emt 0:00:12]} 2. Nc3 {[%emt 0:00:00]} Nf6 {[%emt 0:00:06]} 3. Bc4 {[%emt 0:00:00]} Be7 {[%emt 0:00:07]} 4. d3 {[%emt 0:00:00]} O-O {[%emt 0:00:02]} 5. f4 {[%emt 0:00:00]} d6 {[%emt 0:00:07]} 6. Nf3 {[%emt 0:00:00]} exf4 {[%emt 0:00:27]} 7. Bxf4 {[%emt 0:00:02]} c6 {[%emt 0:00:02]} 8. O-O {[%emt 0:00:20]} d5 {[%emt 0:01:23]} 9. Bb3 {[%emt 0:00:28]} dxe4 {[%emt 0:01:10]} 10. dxe4 {[%emt 0:00:10]} Qb6+ {[%emt 0:00:19]} 11. Kh1 {[%emt 0:00:05]} Bg4 {[%emt 0:00:46]} 12. h3 {[%emt 0:00:12]} Bh5 {[%emt 0:00:08]} 13. Qe2 {[%emt 0:00:42]} Nfd7 {[%emt 0:03:08]} 14. Rad1 {[%emt 0:01:16]} Nc5 {[%emt 0:00:13]} 15. Qf2 {[%emt 0:00:56]} Nbd7 {[%emt 0:01:03]} 16. Be3 {[%emt 0:05:26]} Qc7 {[%emt 0:00:17]} 17. Rd2 {[%emt 0:00:57]} Nxb3 {[%emt 0:00:18]} 18. axb3 {[%emt 0:00:01]} Rad8 {[%emt 0:02:07]} 19. Nd4 {[%emt 0:01:01]} Bg6 {[%emt 0:00:36]} 20. Bf4 {[%emt 0:02:53]} Qa5 {[%emt 0:01:35]} 21. Rfd1 {[%emt 0:02:33]} Nc5 {[%emt 0:01:44]} 22. Qe3 {[%emt 0:01:13]} Rfe8 {[%emt 0:01:19]} 23. Nf5 {[%emt 0:00:16]} Rxd2 {[%emt 0:00:19]} 24. Rxd2 {[%emt 0:00:08]} Nxe4 {[%emt 0:00:53]} 25. Qxe4 {[%emt 0:00:14]} Qxf5 {[%emt 0:00:03]} 26. Qxf5 {[%emt 0:00:04]} Bxf5 {[%emt 0:00:00]} 27. g4 {[%emt 0:00:15]} Bg6 {[%emt 0:00:05]} 28. Rd7 {[%emt 0:00:02]} Bxc2 {[%emt 0:00:07]} 29. Rxb7 {[%emt 0:00:02]} Bc5 {[%emt 0:00:01]} 30. Rc7 {[%emt 0:00:28]} Bxb3 {[%emt 0:00:21]} 31. Rxc6 {[%emt 0:00:01]} Bd4 {[%emt 0:00:11]} 32. Rc7 {[%emt 0:00:05]} h6 {[%emt 0:00:04]} 33. Kg2 {[%emt 0:00:07]} g5 {[%emt 0:00:13]} 34. Bd6 {[%emt 0:00:18]} Bb6 {[%emt 0:00:15]} 35. Rd7 {[%emt 0:00:13]} Re6 {[%emt 0:00:13]} 36. Bc7 {[%emt 0:00:12]} Be3 {[%emt 0:00:20]} 37. Bg3 {[%emt 0:00:07]} a6 {[%emt 0:00:03]} 38. Rb7 {[%emt 0:00:10]} Bc2 {[%emt 0:00:11]} 39. Kf3 {[%emt 0:00:11]} Bc1 {[%emt 0:00:05]} 40. Rb8+ {[%emt 0:00:02]} Kg7 {[%emt 0:00:04]} 41. Bf2 {[%emt 0:00:18]} Rd6 {[%emt 0:00:26]} 42. Bg3 {[%emt 0:00:16]} Rd3+ {[%emt 0:00:10]} 43. Kg2 {[%emt 0:00:05]} Rxg3+ {[%emt 0:00:13]} 44. Kxg3 {[%emt 0:00:04]} Bf4+ {[%emt 0:00:01]} 45. Kf3 {[%emt 0:00:00]} Bxb8 {[%emt 0:00:01]} 0-1

[Event "Kupreichik Memorial Open 2018"]
[Site "Minsk"]
[Date "2018.06.21"]
[Round "2"]
[White "Kirilin, Dmitrij"]
[Black "Ivanytska, Liudmyla"]
[Result "1-0"]
[ECO "D30"]
[WhiteElo "1898"]
[BlackElo "1655"]
[Annotator "NA"]
[PlyCount "118"]
[EventDate "2018.06.21"]
[EventCountry "BLR"]
[SourceTitle "playchess.com"]
[Source "ChessBase"]
[SourceQuality "1"]
[TimeControl "900+10"]

1. d4 {[%emt 0:00:00]} d5 {[%emt 0:00:17]} 2. c4 {[%emt 0:00:00]} e6 {[%emt 0:00:07]} 3. Nf3 {[%emt 0:00:00]} b6 {[%emt 0:00:07]} 4. g3 {[%emt 0:00:14]} Bb7 {[%emt 0:00:07]} 5. Bg2 {[%emt 0:00:08]} Nf6 {[%emt 0:00:19]} 6. O-O {[%emt 0:00:07]} Be7 {[%emt 0:00:04]} 7. Nc3 {[%emt 0:00:22]} O-O {[%emt 0:00:22]} 8. cxd5 {[%emt 0:00:08]} Nxd5 {[%emt 0:00:17]} 9. Nxd5 {[%emt 0:00:08]} Bxd5 {[%emt 0:00:04]} 10. Qd3 {[%emt 0:00:14]} c5 {[%emt 0:00:31]} 11. e4 {[%emt 0:00:10]} Bb7 {[%emt 0:00:09]} 12. Rd1 {[%emt 0:00:06]} cxd4 {[%emt 0:00:35]} 13. Nxd4 {[%emt 0:00:09]} Bc5 {[%emt 0:00:28]} 14. Be3 {[%emt 0:00:39]} Qe7 {[%emt 0:01:23]} 15. Rac1 {[%emt 0:00:24]} Kh8 {[%emt 0:01:38]} 16. a3 {[%emt 0:01:20]} Rd8 {[%emt 0:00:39]} 17. b4 {[%emt 0:01:43]} e5 {[%emt 0:00:40]} 18. bxc5 {[%emt 0:01:11]} exd4 {[%emt 0:00:03]} 19. Bxd4 {[%emt 0:00:08]} Nc6 {[%emt 0:00:08]} 20. Qe3 {[%emt 0:01:21]} Nxd4 {[%emt 0:00:02]} 21. Rxd4 {[%emt 0:00:04]} bxc5 {[%emt 0:00:03]} 22. Rdc4 {[%emt 0:00:08]} Rac8 {[%emt 0:00:12]} 23. h4 {[%emt 0:00:25]} Ba6 {[%emt 0:00:53]} 24. Rxc5 {[%emt 0:00:38]} Rxc5 {[%emt 0:00:07]} 25. Qxc5 {[%emt 0:00:01]} Qxc5 {[%emt 0:00:24]} 26. Rxc5 {[%emt 0:00:01]} Rd7 {[%emt 0:00:27]} 27. e5 {[%emt 0:00:22]} g6 {[%emt 0:00:10]} 28. f4 {[%emt 0:00:47]} Rd1+ {[%emt 0:00:03]} 29. Kh2 {[%emt 0:00:27]} Rd2 {[%emt 0:00:05]} 30. Rc1 {[%emt 0:02:56]} Ra2 {[%emt 0:00:32]} 31. a4 {[%emt 0:02:09]} Bb7 {[%emt 0:00:35]} 32. Rg1 {[%emt 0:00:01]} Bc8 {[%emt 0:00:09]} 33. Kh1 {[%emt 0:00:58]} Rxa4 {[%emt 0:00:21]} 34. Bd5 {[%emt 0:00:23]} Kg7 {[%emt 0:00:01]} 35. Rc1 {[%emt 0:00:08]} Be6 {[%emt 0:00:59]} 36. Bxe6 {[%emt 0:00:08]} fxe6 {[%emt 0:00:02]} 37. Rc7+ {[%emt 0:00:02]} Kg8 {[%emt 0:00:01]} 38. Kg2 {[%emt 0:00:08]} h5 {[%emt 0:00:03]} 39. Re7 {[%emt 0:00:12]} Ra6 {[%emt 0:00:01]} 40. Kf3 {[%emt 0:00:11]} Kf8 {[%emt 0:00:02]} 41. Rd7 {[%emt 0:00:40]} Ra3+ {[%emt 0:00:05]} 42. Kf2 {[%emt 0:00:10]} a5 {[%emt 0:00:01]} 43. Ra7 {[%emt 0:00:42]} a4 {[%emt 0:00:05]} 44. Kg2 {[%emt 0:00:19]} Ke8 {[%emt 0:00:05]} 45. Kh2 {[%emt 0:00:34]} Ra2+ {[%emt 0:00:03]} 46. Kh3 {[%emt 0:00:01]} a3 {[%emt 0:00:03]} 47. g4 {[%emt 0:00:12]} hxg4+ {[%emt 0:00:33]} 48. Kxg4 {[%emt 0:00:01]} Ra1 {[%emt 0:00:01]} 49. Kg5 {[%emt 0:00:20]} a2 {[%emt 0:00:02]} 50. Kf6 {[%emt 0:00:02]} Kd8 {[%emt 0:00:01]} 51. Kxe6 {[%emt 0:00:12]} Kc8 {[%emt 0:01:46]} 52. h5 {[%emt 0:01:00]} Kb8 {[%emt 0:00:37]} 53. Rxa2 {[%emt 0:00:19]} Rxa2 {[%emt 0:00:02]} 54. hxg6 {[%emt 0:00:01]} Ra6+ {[%emt 0:00:49]} 55. Kf7 {[%emt 0:00:18]} Ra4 {[%emt 0:00:05]} 56. f5 {[%emt 0:00:06]} Rf4 {[%emt 0:00:04]} 57. f6 {[%emt 0:00:09]} Kc7 {[%emt 0:00:03]} 58. e6 {[%emt 0:00:06]} Kd6 {[%emt 0:00:28]} 59. e7 {[%emt 0:00:12]} Kd5 {[%emt 0:00:00]} 1-0